[Event "1st Anfield Cup 2022"]
[Site "Kyiv"]
[Date "2022.09.25"]
[Round "6.5"]
[White "Maliutin, Oleksandr"]
[Black "Golichenko, Ilija"]
[Result "0-1"]
[ECO "A22"]
[WhiteElo "2232"]
[BlackElo "2413"]
[Annotator "TA"]
[PlyCount "128"]
[EventDate "2022.09.20"]
[EventType "swiss"]
[EventCountry "UKR"]
[SourceTitle "playchess.com"]
[Source "ChessBase"]
[SourceQuality "1"]
[TimeControl "900+10"]

{[%evp 17,128,-12,0,0,0,-14,32,-15,-8,-3,-17,-3,0,-16,0,18,25,-46,-13,-47,0,-16,18,18,20,26,19,27,18,4,4,4,4,0,0,0,280,-184,-184,-184,-179,-187,-181,-174,-113,-113,-113,-113,-93,-113,-113,-157,-146,-172,-114,-231,-206,-216,-115,-115,-115,-116,-62,-54,-54,-319,-319,-273,-304,-178,-171,-353,-353,-508,-501,-501,-361,-669,-662,-655,-593,-1873,-1558,-11127,-4687,-29957,-29959,-29957,-29955,-29952,-29951,-29946,-29946,-29949,-29952,-29954,-29958,-29958,-173,-29963,-29956,-29955,-173,-29972,-29973,-29976,-29964,-29977,-29978,-29978,-29979,-29978,-29979]} 1. c4 {[%emt 0:00:02]} Nf6 {[%emt 0:00:05]} 2. Nc3 {[%emt 0:00:01]} e5 {[%emt 0:00:02]} 3. g3 {[%emt 0:00:03]} d5 {[%emt 0:00:02]} 4. cxd5 {[%emt 0:00:01]} Nxd5 {[%emt 0:00:02]} 5. Nf3 {[%emt 0:00:26]} Nc6 {[%emt 0:00:06]} 6. d3 {[%emt 0:00:41]} Be7 {[%emt 0:00:13]} 7. Bg2 {[%emt 0:00:02]} Be6 {[%emt 0:01:12]} 8. O-O {[%emt 0:00:30]} O-O {[%emt 0:00:03]} 9. Bd2 {[%emt 0:00:37]} h6 {[%emt 0:01:07]} 10. Rc1 {A29: English Opening: Four Knights Variation with 4 g3.} Qd7 {[%emt 0:04:26]} 11. Ne4 {[%emt 0:02:26]} Bh3 (11... Rfd8 $11) 12. Nc5 {[%emt 0:02:37]} (12. Bxh3 $14 {is superior.} Qxh3 13. Qb3) 12... Bxc5 $11 {[%emt 0:00:13] [#]} 13. Rxc5 $146 {[%emt 0:00:05] And now Bxh3 would win.} ({Predecessor:} 13. Bxh3 Qxh3 14. Rxc5 Nf6 15. Qa4 Ng4 16. Rxc6 bxc6 17. Rc1 f5 18. Rxc6 e4 19. dxe4 {1-0 (39) Mickiewicz,P (2308)-Szewczyk,M (2119) Sypniewo 2021}) 13... Bxg2 {[%emt 0:00:03]} 14. Kxg2 {[%emt 0:00:02]} Rad8 {[%emt 0:00:44]} 15. Qa4 {[%emt 0:02:31]} f5 {[%emt 0:01:33]} 16. Qc4 {[%emt 0:04:03]} Kh7 {[%emt 0:00:54] [#]} 17. b4 {[%emt 0:00:43]} (17. Rxc6 $1 $11 Qxc6 (17... bxc6 18. Nxe5) 18. Qxc6 bxc6 19. Nxe5) 17... a6 {[%emt 0:01:27]} (17... Rfe8 $5 {[%cal Re5e4]}) 18. a4 {[%emt 0:01:25]} Nb6 {[%emt 0:00:43]} (18... Rfe8 $1 $15 {was preferrable.} 19. b5 axb5 20. Qxb5 e4 21. dxe4 fxe4) 19. Qh4 {[%emt 0:00:02]} Rfe8 {[%emt 0:01:51]} 20. b5 {[%emt 0:00:11]} axb5 {[%emt 0:00:52]} 21. axb5 {[%emt 0:00:02]} Nd4 {[%emt 0:00:32]} 22. Nxd4 {[%emt 0:00:27]} exd4 {[%emt 0:00:05]} 23. Qh5 {[%emt 0:00:40]} Nd5 $1 {[%emt 0:00:20]} 24. Rfc1 {[%emt 0:00:11]} Re5 {[%emt 0:00:26]} 25. R1c4 {[%emt 0:00:29]} Qe7 {[%emt 0:00:55]} 26. Qf3 $1 {[%emt 0:00:30] Against f4} Nf4+ $2 {[%emt 0:00:49][%mdl 8192]} 27. Bxf4 $4 {[%emt 0:00:09][%mdl 8192]} (27. Qxf4 $18 {was the only winning move.} Rxc5 28. Bb4) 27... Rxc5 $19 {[%emt 0:00:01]} 28. Rxc5 {[%emt 0:00:11]} Qxc5 {[%emt 0:00:10]} 29. Qxb7 $18 {[%emt 0:00:10][%mdl 4096] Endgame KQR-KQB} Rd7 {[%emt 0:00:30]} 30. h4 {[%emt 0:00:14]} Qb6 {[%emt 0:00:18]} (30... Re7 $1 $19 31. e3 dxe3 32. Bxe3 Qc2) 31. Qa6 $17 {[%emt 0:00:33]} Rd5 {[%emt 0:00:01]} 32. Qc8 {[%emt 0:00:09]} Rc5 {[%emt 0:00:04]} 33. Qd8 {[%emt 0:00:11]} Rxb5 {[%emt 0:00:08] aiming for ...Qc6+.} 34. Qxc7 {[%emt 0:00:09]} Qe6 {[%emt 0:00:07]} 35. Qc2 {[%emt 0:00:13] Inhibits Rb2.} Qd5+ {[%emt 0:00:16]} ({Better is} 35... Rb6 $19 36. Qc5 Rb2) 36. Kh2 {[%emt 0:00:06]} (36. f3 $17) 36... Rc5 {[%emt 0:00:03]} 37. Qa4 {[%emt 0:00:04]} Ra5 {[%emt 0:00:06]} (37... Rc8 $1 $19 {Hoping for ...Ra8.} 38. Qd1 Ra8) 38. Qe8 {[%emt 0:00:12]} Ra1 $36 {[%emt 0:00:16][%csl Gd5][%cal Ra1h1][%mdl 2048] Black has strong initiative.} 39. f3 {[%emt 0:00:01]} Ra2 {[%emt 0:00:05]} ({Black should play} 39... Ra6 $17 {White must now prevent ...Re6.} 40. Kg1 Qa2) 40. h5 {[%emt 0:00:10]} Ra8 {Active counter play!} 41. Qe5 {[%emt 0:00:03][%mdl 8192] Loses the game.} ({White should try} 41. Qg6+ $15 Kg8 42. Kg2) 41... Qxe5 $19 {[%emt 0:00:18]} 42. Bxe5 {[%emt 0:00:10] KR-KB} Ra2 $1 {[%emt 0:00:01]} 43. Bxd4 {[%emt 0:00:29]} (43. Kg1 $142 Rxe2 44. Bxd4) 43... Rxe2+ {[%emt 0:00:02]} 44. Kh3 $2 {[%emt 0:00:07]} (44. Kg1 {was the only chance.}) 44... Rd2 {[%emt 0:00:01]} 45. Be5 {[%emt 0:00:11]} (45. Bb6 $142) 45... Rxd3 {[%emt 0:00:01]} 46. Kg2 Rd2+ {[%emt 0:00:06]} 47. Kh3 $2 {[%emt 0:00:10]} (47. Kg1) 47... Rf2 {[%emt 0:00:01]} 48. f4 {[%emt 0:00:02]} Rf3 {[%emt 0:00:53]} 49. Kg2 {[%emt 0:00:05]} Rb3 {[%emt 0:00:02] Threatens to win with ...Rd3.} 50. Kh3 {[%emt 0:00:01]} g5 {[%emt 0:00:13]} 51. hxg6+ {[%emt 0:00:07]} Kxg6 {[%emt 0:00:00]} 52. Bd4 {[%emt 0:00:10]} Rd3 {[%emt 0:00:39]} 53. Be5 {[%emt 0:00:03]} Kh5 {[%emt 0:00:31]} 54. Bg7 {[%emt 0:00:05]} Rd1 {[%emt 0:00:13]} 55. Be5 {[%emt 0:00:15]} Rd2 {[%emt 0:00:15]} 56. Bg7 {[%emt 0:00:09]} Kg6 {[%emt 0:00:03]} 57. Be5 {[%emt 0:00:03]} Kf7 $2 {[%emt 0:00:04]} (57... Rd3 58. Bc7 Kf7 59. Be5 Ke6 60. Kh4 Rd1 61. Kh3 h5 62. Bc7 Kd5 63. Bb6 Ke4 64. Kg2 Rd2+ 65. Kh3 Kf3 66. Kh4 Rg2 67. Kxh5 Rxg3 68. Bc7 Rg4 69. Kh6 Ke4 70. Bd6 Rxf4 71. Kg7 Rg4+ 72. Kf6 f4 73. Ke6 Rg6+ 74. Ke7 Rxd6 $1 {[%mdl 512]} 75. Kxd6 f3 76. Kd7 f2 77. Ke7 f1=Q 78. Kd6 Qc4 79. Ke7 Ke5 80. Kd7 Qb5+ 81. Kd8 Qb7 82. Ke8 Ke6 83. Kf8 Qf7#) 58. Bc3 $2 {[%emt 0:00:11]} (58. g4 $19) 58... Rc2 {[%emt 0:00:03]} 59. Be5 {[%emt 0:00:07] [#]} Ke6 $2 {[%emt 0:00:02]} (59... h5 $1 {mates} 60. Bd4 Ke6 61. Bg7 Kd5 62. Bh8 Ke4 63. Bf6 Kf3 64. Kh4 Rg2 65. Be5 Rxg3 66. Kxh5 Rg4 67. Bc7 Ke4 68. Be5 Rxf4 69. Bd6 Rg4 70. Bf8 Rg1 71. Kh4 f4 72. Bc5 Rg2 73. Kh3 f3 74. Bd6 Rg6 75. Bc5 f2 76. Bxf2 Kf3 77. Kh4 Kxf2 78. Kh5 Rg2 79. Kh4 Kf3 80. Kh5 Kf4 81. Kh6 Kf5 82. Kh7 Kf6 83. Kh8 Kf7 84. Kh7 Rh2#) 60. Bg7 $2 {[%emt 0:00:32]} (60. g4 $19) 60... h5 {[%emt 0:00:01] Black mates.} 61. Kh4 {[%emt 0:00:42]} Rh2+ {[%emt 0:00:01]} 62. Kg5 {[%emt 0:00:02]} Rh3 {[%emt 0:00:01]} 63. Bd4 {[%emt 0:00:22]} Rxg3+ {[%emt 0:00:03]} 64. Kxh5 {[%emt 0:00:02]} Rg4 {[%emt 0:00:01] Weighted Error Value: White=0.77/Black=0.42} 0-1

[Event "1st Anfield Cup 2022"]
[Site "Kyiv"]
[Date "2022.09.25"]
[Round "6.6"]
[White "Skliarov, Viktor"]
[Black "Stavroyany, Sergey"]
[Result "1-0"]
[ECO "B31"]
[WhiteElo "2384"]
[BlackElo "2296"]
[Annotator "TA"]
[PlyCount "81"]
[EventDate "2022.09.20"]
[EventType "swiss"]
[EventCountry "UKR"]
[SourceTitle "playchess.com"]
[Source "ChessBase"]
[SourceQuality "1"]
[TimeControl "900+10"]

{[%evp 14,81,43,31,29,29,45,29,50,44,59,60,66,60,63,75,75,54,107,106,104,53,118,118,107,103,138,110,153,43,40,39,38,64,43,12,0,7,8,-47,-52,-30,0,0,116,103,103,65,212,191,428,377,4383,2270,29972,29975,5302,793,29983,2041,2789,1510,2252,1642,1388,898,29974,29975,29996,29982]} 1. e4 {[%emt 0:00:03]} c5 {[%emt 0:00:25]} 2. Nf3 {[%emt 0:00:04]} Nc6 {[%emt 0:00:03]} 3. Bb5 {[%emt 0:00:06]} g6 {[%emt 0:00:21]} 4. O-O {[%emt 0:00:03]} Bg7 {[%emt 0:00:01]} 5. Re1 {[%emt 0:00:03]} e5 {[%emt 0:00:20]} 6. Bxc6 {[%emt 0:01:04]} dxc6 {[%emt 0:00:21]} 7. d3 {[%emt 0:00:23]} Ne7 {[%emt 0:00:20]} 8. Be3 {[%emt 0:00:39]} b6 {[%emt 0:00:01] B31: Sicilian: 2...Nc6 3 Bb5 g6.} 9. Nbd2 {[%emt 0:00:40]} h6 {[%emt 0:01:04]} 10. a3 {[%emt 0:01:56][%cal Ba2a3,Ba3b4][%mdl 32] [#]} g5 $146 {[%emt 0:00:54] White has an edge.} ({Predecessor:} 10... a5 11. b4 cxb4 12. axb4 a4 13. Ra3 b5 14. Qa1 f6 15. Bc5 O-O 16. d4 g5 {1-0 (47) Vasiukov,E (2545)-Arbakov,V (2445) Moscow 1981}) 11. Nc4 {[%emt 0:00:41]} Ng6 {[%emt 0:00:06]} 12. b4 {[%emt 0:00:02]} cxb4 {[%emt 0:00:28]} 13. axb4 {[%emt 0:00:04][%cal Oe3b6] And now Bxb6! would win.} Bg4 {[%emt 0:01:04]} 14. h3 {[%emt 0:00:16]} Be6 {[%emt 0:00:02]} 15. Nfd2 {[%emt 0:03:39]} h5 {[%emt 0:00:27]} ({Better is} 15... O-O $14) 16. Ra6 $16 {[%emt 0:00:51]} g4 {[%emt 0:00:30]} 17. h4 {[%emt 0:00:25]} (17. Qa1 $16) 17... Qxh4 {[%emt 0:01:45]} (17... Nxh4 $14 18. Qa1 O-O) 18. Nd6+ {[%emt 0:01:51]} Kf8 {[%emt 0:00:39]} 19. Bxb6 $1 {[%emt 0:00:08][%mdl 64] Pin} Nf4 {[%emt 0:00:56]} 20. Nf1 {[%emt 0:02:09] Prevents g3. Active counter play! Pair of Knights!} (20. Rxa7 $6 Rxa7 21. Bxa7 g3 $15) 20... Qg5 {[%emt 0:01:02]} (20... Nxg2 $2 21. Kxg2 Bh6 22. Kg1 $18) 21. Be3 {[%emt 0:02:22]} (21. Bxa7 Kg8 $11) (21. Rxa7 $6 Rxa7 22. Bxa7 h4 $14) (21. Ne3 $16) 21... h4 $1 $14 {[%emt 0:00:11] Hoping for ...g3.} 22. Nf5 {[%emt 0:00:43] Against g3} (22. Rxc6 g3 23. fxg3 h3 24. gxh3 Nxh3+ 25. Kg2 Nf4+ 26. Bxf4 Bh3+ 27. Kg1 exf4 $15) ({Don't blunder} 22. Rxa7 $2 Rxa7 23. Bxa7 g3 24. fxg3 h3 25. gxh3 Nxh3+ 26. Kg2 Bg4 $19) 22... Bxf5 {[%emt 0:03:03]} 23. exf5 {[%emt 0:00:01]} Qxf5 {[%emt 0:00:04]} 24. Bc5+ {[%emt 0:00:12]} (24. Rxc6 $5 {[%cal Re3c5]} h3 25. g3 h2+ 26. Kh1 $14) 24... Kg8 {[%emt 0:00:11]} 25. Ne3 $36 {[%emt 0:00:01][%mdl 2048] White has good play.} Qc8 {[%emt 0:00:10]} 26. Rxa7 {[%emt 0:00:25]} ({White should try} 26. Ra3 $11) 26... Rxa7 $15 {[%emt 0:00:45]} 27. Bxa7 {[%emt 0:00:01]} f5 {[%emt 0:00:31]} (27... Qd7 $5 {[%cal Rd7a7]} 28. Bc5 f5 $11) 28. d4 {[%emt 0:00:28][%cal Bd3d4,Bd4e5][%mdl 32]} Qd7 {[%emt 0:01:09] [#]} (28... h3 $11 {keeps the balance.} 29. g3 h2+ 30. Kh1 Nh3) 29. dxe5 $1 $16 {[%emt 0:00:18]} ({Reject} 29. Bb8 $6 h3 30. dxe5 hxg2 31. Nxg2 Nh3+ 32. Kf1 Qe8 $11) 29... Qxa7 {[%emt 0:00:01]} 30. Qd8+ {[%emt 0:00:01]} Kf7 {[%emt 0:00:01] Loses the game.} (30... Kh7 $1 $14 31. Qg5 Nd5) 31. Qg5 $18 {[%emt 0:00:14] Dancing on a razor blade.} Rh5 $2 {[%emt 0:00:02]} (31... g3) 32. Qxf4 {[%emt 0:00:04]} h3 $2 {[%emt 0:00:08]} (32... Kg6 33. Rd1 Qe7 34. Nxf5 Qg5 35. Qxg5+ Rxg5) 33. Nxf5 {[%emt 0:00:12]} h2+ {[%emt 0:01:12]} 34. Kh1 {[%emt 0:00:03]} Kg6 {[%emt 0:00:01] [#]} 35. Ng3 {[%emt 0:00:26]} (35. e6 $142 $1 Be5 (35... Rxf5 36. Qxg4+) 36. Qxg4+ Rg5 37. Qe4 Rxf5 38. g4 Qxf2 39. gxf5+ Kh6 40. Qxe5 Qf3+ 41. Kxh2) 35... Bxe5 {[%emt 0:00:22]} 36. Qxg4+ (36. Qe4+ $142 Kh6 37. Qxc6+ Kh7 38. Nxh5 Qd4 39. Qe6 g3 40. Rxe5 Qd1+ 41. Re1) 36... Rg5 37. Qe6+ {[%emt 0:00:26]} Bf6 {[%emt 0:00:01]} 38. Ne4 {[%emt 0:00:11][%cal Bg3e4,Be4f6,Bf6g4][%mdl 32]} Rf5 {[%emt 0:00:21]} 39. Qe8+ {[%emt 0:00:03]} Kg7 {[%emt 0:00:18]} 40. Nxf6 {[%emt 0:00:09]} Qxf2 {[%emt 0:00:01]} 41. Ng4 {[%emt 0:00:20] Weighted Error Value: White=0.24 (precise) /Black=0.89} 1-0

[Event "1st Anfield Cup 2022"]
[Site "Kyiv"]
[Date "2022.09.25"]
[Round "7.1"]
[White "Golichenko, Ilija"]
[Black "Golubev, Mikhail"]
[Result "1/2-1/2"]
[ECO "E73"]
[WhiteElo "2413"]
[BlackElo "2461"]
[Annotator "TA"]
[PlyCount "178"]
[EventDate "2022.09.20"]
[EventType "swiss"]
[EventCountry "UKR"]
[SourceTitle "playchess.com"]
[Source "ChessBase"]
[SourceQuality "1"]
[TimeControl "900+10"]

{[%evp 23,178,0,50,46,44,50,62,48,93,87,95,99,112,45,151,174,166,147,212,212,237,226,233,162,168,168,204,208,205,206,198,200,192,175,244,235,244,209,210,219,203,202,192,114,210,114,127,117,98,89,93,93,89,34,31,13,8,0,33,34,49,29,31,30,32,38,31,19,37,37,45,44,45,32,57,8,32,32,32,32,32,32,39,41,46,8,8,8,8,8,8,0,0,0,0,0,0,0,0,0,0,0,0,0,0,0,0,0,0,0,51,51,51,51,51,51,51,51,51,8,43,8,0,0,0,0,0,0,0,0,0,0,0,0,0,0,0,0,0,0,0,0,0,0,0,0,0,0,0,0,0,0,0,0,8,8,64]} 1. d4 {[%emt 0:00:02]} Nf6 {[%emt 0:00:03]} 2. c4 {[%emt 0:00:01]} g6 {[%emt 0:00:04]} 3. Nc3 {[%emt 0:00:02]} Bg7 {[%emt 0:00:01]} 4. e4 {[%emt 0:00:01]} d6 {[%emt 0:00:01]} 5. Be2 {[%emt 0:00:02]} O-O {[%emt 0:00:03]} 6. Bg5 {[%emt 0:00:02]} c5 {[%emt 0:00:06]} 7. d5 {[%emt 0:00:03]} h6 {[%emt 0:00:05]} 8. Be3 {[%emt 0:00:04]} e6 {[%emt 0:00:05]} 9. h3 {[%emt 0:00:04]} exd5 {[%emt 0:00:11]} 10. exd5 {[%emt 0:00:02]} Re8 {[%emt 0:00:30]} 11. Qd2 {[%emt 0:00:14]} Kh7 {[%emt 0:01:08]} 12. Bd3 {[%emt 0:00:20]} Nbd7 {[%emt 0:00:42]} (12... b5 $11) 13. Nf3 $14 {[%emt 0:00:04] E74: King's Indian: Averbakh Variation: 6...c5.} Ne5 {[%emt 0:00:13]} 14. Nxe5 {[%emt 0:00:03]} Rxe5 {[%emt 0:00:01]} 15. O-O {[%emt 0:01:06] White is slightly better.} Bf5 {[%emt 0:01:20]} 16. Bxf5 $1 {[%emt 0:01:01]} Rxf5 {[%emt 0:00:01]} 17. f4 {[%emt 0:00:42]} h5 {[%emt 0:00:03] [#] Against g4} 18. Bf2 $146 {[%emt 0:01:24]} (18. g3 $1 $16) ({Predecessor:} 18. g3 Qe7 19. Rae1 Re8 20. b3 Qd7 21. Qd3 Bh6 22. Re2 Kg8 23. Rg2 Bg7 24. Bd2 {1-0 (56) Tratar,M (2492)-Markoja,S (2092) Sentjur 2013}) 18... Qd7 {[%emt 0:01:02]} (18... b5 $14) 19. Rae1 $16 {[%emt 0:00:42]} Re8 {[%emt 0:01:26]} 20. Rxe8 {[%emt 0:00:14]} Qxe8 {[%emt 0:00:07] [#]} (20... Nxe8 $16 21. Ne2 b5) 21. Bh4 $1 $18 {[%emt 0:04:01]} Bh6 {[%emt 0:01:27]} 22. g3 {[%emt 0:03:11]} Bg7 {[%emt 0:01:36]} 23. Qe2 {[%emt 0:03:20]} Qxe2 {[%emt 0:03:10]} 24. Nxe2 {[%emt 0:00:01]} Nxd5 {[%emt 0:00:02] [#]} 25. g4 $1 {[%emt 0:00:59]} (25. cxd5 Rxd5 26. Kf2 Rd2 $14) 25... hxg4 {[%emt 0:00:52]} 26. hxg4 {[%emt 0:00:02]} ({Worse is} 26. cxd5 gxh3 27. Rd1 Bxb2 $11) 26... Nxf4 {[%emt 0:00:03]} 27. Nxf4 {[%emt 0:00:28]} ({Much less strong is} 27. gxf5 $6 Nxe2+ 28. Kf2 Nd4 $16) 27... Re5 {[%emt 0:00:01]} 28. Bg3 {[%emt 0:01:21]} Re4 {[%emt 0:00:13]} (28... Rg5 {was called for.}) 29. b3 {[%emt 0:00:04]} Be5 {[%emt 0:00:25]} 30. Kg2 {[%emt 0:00:09] Hoping for Kf3.} g5 {[%emt 0:00:55]} 31. Nd3 {[%emt 0:00:01]} Bxg3 {[%emt 0:01:24]} 32. Kxg3 {[%emt 0:00:03][%mdl 4096] Endgame KRN-KR} Kg6 {[%emt 0:00:02]} 33. Re1 {[%emt 0:00:20] Inhibits Re3+.} (33. Rd1 $18) 33... Rd4 {[%emt 0:00:05]} (33... Rxe1 $16 {might work better.} 34. Nxe1 f5) 34. Re3 {[%emt 0:00:04]} (34. Nf2 $18) 34... f5 $16 {[%emt 0:00:04]} 35. gxf5+ {[%emt 0:00:12]} Kxf5 {[%emt 0:00:02]} 36. Rf3+ {[%emt 0:00:07]} Ke6 {[%emt 0:00:20]} 37. a4 {[%emt 0:00:11]} b6 {[%emt 0:00:08]} 38. Nf2 {[%emt 0:00:11]} (38. Re3+ $16 Kf5 39. Rf3+ Ke6 40. Nc1) 38... d5 $1 $14 {[%emt 0:00:11]} 39. cxd5+ {[%emt 0:00:21]} Kxd5 {[%emt 0:00:08]} 40. Ng4 {[%emt 0:00:11]} a6 {[%emt 0:00:46]} 41. Rf5+ {[%emt 0:00:09]} Kd6 {[%emt 0:00:23]} 42. Rf6+ {[%emt 0:00:05]} Kc7 {[%emt 0:00:06]} 43. Ne5 {[%emt 0:00:04]} Rb4 {[%emt 0:01:12]} 44. Rf3 {[%emt 0:00:02]} b5 {[%emt 0:00:29][%cal Bb6b5,Bb5c4,Bc4c3][%mdl 32]} 45. a5 {[%emt 0:00:01]} c4 {[%emt 0:00:04] Prevents Nd3.} 46. bxc4 {[%emt 0:00:19] Black must now prevent c5.} bxc4 {[%emt 0:00:01]} 47. Rf6 {[%emt 0:00:26]} Rb3+ {[%emt 0:00:12]} 48. Kg4 {[%emt 0:00:04] aiming for Rc6+.} c3 {[%emt 0:00:16]} 49. Rxa6 {[%emt 0:00:27]} (49. Rc6+ $14 Kb7 50. Rc4 (50. Kxg5 Rb5 $11)) 49... Rb5 {[%emt 0:00:41]} 50. Rc6+ {[%emt 0:00:05]} Kb7 {[%emt 0:00:21]} 51. a6+ {[%emt 0:00:01]} Ka7 {[%emt 0:00:00]} 52. Nd3 {[%emt 0:00:08]} Rb6 {[%emt 0:00:15]} 53. Rxc3 {[%emt 0:00:05] Threatens to win with Nc5.} Kxa6 {[%emt 0:00:05]} 54. Kxg5 {[%emt 0:00:02]} Rb5+ {[%emt 0:00:09]} 55. Kf6 {[%emt 0:00:03]} Kb6 {[%emt 0:00:02]} 56. Ke6 {[%emt 0:00:02]} Rh5 {[%emt 0:00:26]} 57. Ne5 {[%emt 0:00:03]} Kb5 {[%emt 0:00:19]} 58. Kd5 {[%emt 0:00:05]} Kb4 {[%emt 0:00:10]} 59. Rc4+ {[%emt 0:00:03]} Kb3 {[%emt 0:00:03]} 60. Re4 {[%emt 0:00:02]} Kc3 {[%emt 0:00:04]} 61. Re3+ {[%emt 0:00:06]} Kd2 {[%emt 0:00:24]} 62. Rg3 {[%emt 0:00:05]} Kc2 {[%emt 0:00:04]} 63. Kd4 {[%emt 0:00:02]} Rh4+ {[%emt 0:00:04]} 64. Ng4 {[%emt 0:00:02]} Kb2 {[%emt 0:00:11]} 65. Kc4 {[%emt 0:00:01]} Rh8 {[%emt 0:00:12]} 66. Rg2+ {[%emt 0:00:02]} Kc1 {[%emt 0:00:13]} ({Better is} 66... Ka3 $11) 67. Ne3 $1 {[%emt 0:00:02]} Rc8+ {[%emt 0:00:12]} 68. Kb3 {[%emt 0:00:01]} Rb8+ {[%emt 0:00:05]} 69. Kc3 {[%emt 0:00:01][%cal Rg2g1]} Rc8+ {[%emt 0:00:01]} 70. Nc4 {[%emt 0:00:20][%cal Rg2g1]} Kd1 {[%emt 0:00:02]} 71. Ra2 {[%emt 0:00:19]} Ke1 {[%emt 0:00:10]} 72. Kd3 {[%emt 0:00:06]} Rd8+ {[%emt 0:00:04] The position is equal.} 73. Ke4 {[%emt 0:00:01]} Re8+ {[%emt 0:00:02]} 74. Ne5 {[%emt 0:00:02]} Kd1 {[%emt 0:00:04]} 75. Kd4 {[%emt 0:00:24]} Rd8+ {[%emt 0:00:05]} 76. Ke3 {[%emt 0:00:06]} Re8 {[%emt 0:00:07]} 77. Ra5 {[%emt 0:00:06]} Kc2 {[%emt 0:00:08]} 78. Rc5+ {[%emt 0:00:03]} Kb3 {[%emt 0:00:04]} 79. Kd2 {[%emt 0:00:01]} Rh8 {[%emt 0:00:14]} 80. Rb5+ {[%emt 0:00:03]} Ka4 {[%emt 0:00:02]} 81. Rb1 {[%emt 0:00:13]} Rh2+ {[%emt 0:00:02]} 82. Kc3 {[%emt 0:00:01]} Rh3+ {[%emt 0:00:04]} 83. Kc4 {[%emt 0:00:51]} Rh4+ {[%emt 0:00:01]} 84. Kc5 {[%emt 0:00:01]} Rh5 {[%emt 0:00:05]} 85. Rb4+ {[%emt 0:00:01]} Ka3 {[%emt 0:00:09]} 86. Re4 {[%emt 0:00:01]} Kb3 {[%emt 0:00:08]} 87. Re3+ {[%emt 0:00:03]} Kc2 {[%emt 0:00:08]} 88. Kb4 {[%emt 0:00:09]} Rh8 {[%emt 0:00:15]} 89. Nd7 {[%emt 0:00:29]} Rh4+ {[%emt 0:00:07] Blacks defense is rewarded with a draw.  Weighted Error Value: White=0.13 (very precise) /Black=0.16 (very precise)} ({Black should play} 89... Kd2 $11) 1/2-1/2

[Event "1st Anfield Cup 2022"]
[Site "Kyiv"]
[Date "2022.09.25"]
[Round "7.2"]
[White "Samunenkov, Ihor"]
[Black "Bakhmatsky, Vladislav"]
[Result "1/2-1/2"]
[ECO "E04"]
[WhiteElo "2469"]
[BlackElo "2468"]
[Annotator "TA"]
[PlyCount "57"]
[EventDate "2022.09.20"]
[EventType "swiss"]
[EventCountry "UKR"]
[SourceTitle "playchess.com"]
[Source "ChessBase"]
[SourceQuality "1"]
[TimeControl "900+10"]

{[%evp 23,57,17,14,22,20,-17,-22,-10,-11,-6,0,-49,-50,-45,-60,-43,40,41,47,25,22,11,7,6,5,0,0,0,0,0,0,0,0,0,0,0]} 1. d4 {[%emt 0:00:02]} Nf6 {[%emt 0:00:02]} 2. c4 {[%emt 0:00:02]} e6 {[%emt 0:00:02]} 3. Nf3 {[%emt 0:00:23]} d5 {[%emt 0:00:01]} 4. g3 {[%emt 0:00:02]} dxc4 {[%emt 0:00:02]} 5. Bg2 {[%emt 0:00:02]} c5 {[%emt 0:00:01]} 6. O-O {[%emt 0:01:31]} Nc6 {[%emt 0:00:02]} 7. dxc5 {[%emt 0:00:04]} Qxd1 {[%emt 0:00:02]} 8. Rxd1 {[%emt 0:00:02]} Bxc5 {[%emt 0:00:02]} 9. Nbd2 {[%emt 0:00:02]} c3 {[%emt 0:00:01]} 10. bxc3 {[%emt 0:00:01]} O-O {[%emt 0:00:03]} 11. Nb3 {[%emt 0:00:21]} Be7 {[%emt 0:00:02]} 12. Nfd4 {[%emt 0:01:23]} Bd7 {[%emt 0:00:02]} 13. Nb5 {[%emt 0:01:31] E04: Open Catalan: 5 Nf3.} Ne5 {[%emt 0:00:36]} 14. Nd6 {[%emt 0:02:01]} Bxd6 {[%emt 0:00:02]} 15. Rxd6 {[%emt 0:00:02]} Bc6 {[%emt 0:00:01]} 16. Bxc6 {[%emt 0:02:43]} Nxc6 {[%emt 0:00:02]} 17. Nc5 {[%emt 0:00:15]} (17. c4 $11) 17... Na5 $1 $15 {[%emt 0:00:58]} 18. Bg5 {[%emt 0:04:05] [#]} Nd5 $146 {[%emt 0:03:09] Pair of Knights!} ({Predecessor:} 18... Rfc8 19. Bxf6 Rxc5 20. Bd4 Rc7 21. Bxa7 Nc4 22. Rd3 h5 23. Be3 Nxe3 24. Rxe3 {½-½ (24) Jirka,J (2393)-Cernousek,L (2422) Brno 2006}) 19. e4 {[%emt 0:00:43]} Nxc3 {[%emt 0:00:53]} ({Better is} 19... Nb6 $15) 20. Rd3 $36 {[%emt 0:00:23][%mdl 2048] White has the initiative.} Nb5 {[%emt 0:06:59][%cal Bc3b5,Bb5a7,Ba7c6][%mdl 32]} 21. Rb1 {[%emt 0:00:05][%mdl 1024] White has compensation.} (21. a4 $5 {[%cal Ra4b5]} Nc7 22. Rc1 $14) 21... a6 {[%emt 0:02:22]} 22. Nd7 {[%emt 0:01:54] The position is equal.} Rfe8 {[%emt 0:01:22]} 23. a4 {[%emt 0:00:53]} Na7 {[%emt 0:00:19]} 24. Nb6 {[%emt 0:00:04]} Rab8 {[%emt 0:00:06]} 25. Rbd1 {[%emt 0:00:30] Threatens to win with Bf4.} N7c6 {[%emt 0:00:29]} 26. Nd7 {[%emt 0:00:12]} Rbc8 {[%emt 0:00:14]} 27. Nb6 {[%emt 0:00:02]} Rb8 {[%emt 0:01:06]} (27... Ne5 $2 28. Nxc8 Nxd3 29. Nd6 (29. Ne7+ Kf8 $14) 29... Nxf2 30. Kxf2 $18) 28. Nd7 {[%emt 0:00:20] Inhibits Ne5.} Rbc8 {[%emt 0:00:01]} 29. Nb6 {[%emt 0:00:01] Against Nc4.  Weighted Error Value: White=0.08 (flawless) /Black=0.08 (flawless)} 1/2-1/2